[Event "*** Titled Tuesday Blitz"]
[Site "Chess.com"]
[Date "2020.04.28"]
[Round "2"]
[White "rasmussvane"]
[Black "Joshukid"]
[Result "1-0"]
[WhiteElo "2866"]
[BlackElo "2555"]
[TimeControl "180+1"]
[EndTime "10:17:21 PDT"]
[Termination "rasmussvane won by resignation"]

1. Nf3 {[%clk 0:03:00.9]} 1... Nf6 {[%clk 0:02:58]} 2. g3 {[%clk 0:02:58.6]}
2... d5 {[%clk 0:02:55.1]} 3. Bg2 {[%clk 0:02:58.4]} 3... c6 {[%clk 0:02:55.5]}
4. O-O {[%clk 0:02:58.7]} 4... Bg4 {[%clk 0:02:40.2]} 5. h3 {[%clk 0:02:58.4]}
5... Bxf3 {[%clk 0:02:39.7]} 6. Bxf3 {[%clk 0:02:59.3]} 6... e6 {[%clk
0:02:39.7]} 7. d3 {[%clk 0:02:58.3]} 7... Bd6 {[%clk 0:02:39.4]} 8. e4 {[%clk
0:02:57.7]} 8... Nbd7 {[%clk 0:02:38.5]} 9. Nd2 {[%clk 0:02:56.5]} 9... h5
{[%clk 0:02:35]} 10. Bg2 {[%clk 0:02:46.6]} 10... Qc7 {[%clk 0:02:25.8]} 11. Qe2
{[%clk 0:02:33.8]} 11... O-O-O {[%clk 0:02:24.1]} 12. d4 {[%clk 0:02:11]} 12...
dxe4 {[%clk 0:02:08]} 13. Nxe4 {[%clk 0:02:11.9]} 13... Nxe4 {[%clk 0:02:08.4]}
14. Qxe4 {[%clk 0:02:12.5]} 14... Nf6 {[%clk 0:02:01.6]} 15. Qf3 {[%clk
0:02:12.8]} 15... h4 {[%clk 0:02:00.7]} 16. g4 {[%clk 0:02:12.5]} 16... Nd5
{[%clk 0:02:00.1]} 17. c4 {[%clk 0:02:08.8]} 17... Nf6 {[%clk 0:01:25.1]} 18.
Bg5 {[%clk 0:02:07.6]} 18... Be7 {[%clk 0:01:23.5]} 19. Rfd1 {[%clk 0:02:06.3]}
19... Rd7 {[%clk 0:01:19.3]} 20. Rac1 {[%clk 0:02:03.9]} 20... Qa5 {[%clk
0:01:19.3]} 21. d5 {[%clk 0:02:00.1]} 21... exd5 {[%clk 0:01:14.9]} 22. cxd5
{[%clk 0:01:59.7]} 22... Rhd8 {[%clk 0:00:54.2]} 23. b4 {[%clk 0:01:20.9]} 23...
Bxb4 {[%clk 0:00:45.3]} 24. dxc6 {[%clk 0:00:56.8]} 24... Rxd1+ {[%clk
0:00:44.7]} 25. Rxd1 {[%clk 0:00:57.7]} 25... Rxd1+ {[%clk 0:00:28.5]} 26. Qxd1
{[%clk 0:00:58.6]} 26... bxc6 {[%clk 0:00:27.2]} 27. Bxh4 {[%clk 0:00:44.3]}
27... Qxa2 {[%clk 0:00:26.2]} 28. Bxc6 {[%clk 0:00:43.1]} 28... Qd2 {[%clk
0:00:24.9]} 29. Qa4 {[%clk 0:00:36.1]} 29... a5 {[%clk 0:00:21.7]} 30. Qb5
{[%clk 0:00:33.4]} 30... Qc1+ {[%clk 0:00:14.7]} 31. Kg2 {[%clk 0:00:33.1]}
31... Qc5 {[%clk 0:00:14.5]} 32. Qb7+ {[%clk 0:00:32.5]} 1-0

[Event "*** Titled Tuesday Blitz"]
[Site "Chess.com"]
[Date "2020.04.28"]
[Round "2"]
[White "adricalderon8"]
[Black "theblitzchamp"]
[Result "0-1"]
[WhiteElo "2414"]
[BlackElo "2678"]
[TimeControl "180+1"]
[EndTime "10:17:21 PDT"]
[Termination "theblitzchamp won on time"]

1. e4 {[%clk 0:03:00.9]} 1... e5 {[%clk 0:02:59.6]} 2. Nf3 {[%clk 0:02:59]} 2...
Nc6 {[%clk 0:03:00.1]} 3. Bc4 {[%clk 0:02:59.4]} 3... Nf6 {[%clk 0:03:00.2]} 4.
d3 {[%clk 0:02:59.7]} 4... Be7 {[%clk 0:02:59.8]} 5. O-O {[%clk 0:02:59.2]} 5...
O-O {[%clk 0:03:00.4]} 6. Re1 {[%clk 0:02:57.6]} 6... a6 {[%clk 0:02:59.6]} 7.
a4 {[%clk 0:02:57.8]} 7... d6 {[%clk 0:02:58.7]} 8. h3 {[%clk 0:02:55.1]} 8...
Be6 {[%clk 0:02:58.9]} 9. Nbd2 {[%clk 0:02:49.5]} 9... Re8 {[%clk 0:02:56.8]}
10. Bxe6 {[%clk 0:02:48.1]} 10... fxe6 {[%clk 0:02:56.9]} 11. Nc4 {[%clk
0:02:43.1]} 11... Qd7 {[%clk 0:02:55.9]} 12. c3 {[%clk 0:02:42.6]} 12... Rf8
{[%clk 0:02:55.4]} 13. b4 {[%clk 0:02:42.4]} 13... Nh5 {[%clk 0:02:54.8]} 14. g3
{[%clk 0:02:32.7]} 14... Nf6 {[%clk 0:02:48.2]} 15. Be3 {[%clk 0:02:31.5]} 15...
b5 {[%clk 0:02:36.8]} 16. Ncd2 {[%clk 0:02:16.6]} 16... d5 {[%clk 0:02:36.1]}
17. Bg5 {[%clk 0:01:36.8]} 17... h6 {[%clk 0:02:21.5]} 18. Bxf6 {[%clk
0:01:34.4]} 18... Bxf6 {[%clk 0:02:22]} 19. Nb3 {[%clk 0:01:33.3]} 19... Be7
{[%clk 0:02:15.6]} 20. axb5 {[%clk 0:01:30]} 20... axb5 {[%clk 0:02:15.2]} 21.
Qe2 {[%clk 0:01:12]} 21... Rxa1 {[%clk 0:02:06.2]} 22. Rxa1 {[%clk 0:01:09.5]}
22... Bd6 {[%clk 0:02:05.3]} 23. Kg2 {[%clk 0:01:05.8]} 23... Qf7 {[%clk
0:01:57.4]} 24. Rf1 {[%clk 0:00:53.5]} 24... Ra8 {[%clk 0:01:51.3]} 25. Nfd2
{[%clk 0:00:41.2]} 25... Ra2 {[%clk 0:01:45.1]} 26. Ra1 {[%clk 0:00:34.9]} 26...
Rc2 {[%clk 0:01:31.1]} 27. Rc1 {[%clk 0:00:31.7]} 27... Ra2 {[%clk 0:01:17.1]}
28. Ra1 {[%clk 0:00:31.6]} 28... Rxa1 {[%clk 0:01:17.5]} 29. Nxa1 {[%clk
0:00:31.4]} 29... d4 {[%clk 0:01:17.4]} 30. c4 {[%clk 0:00:31]} 30... bxc4
{[%clk 0:01:13.3]} 31. Nxc4 {[%clk 0:00:29.8]} 31... Nxb4 {[%clk 0:01:11.6]} 32.
Nc2 {[%clk 0:00:23.8]} 32... Na2 {[%clk 0:01:04.6]} 33. Qd1 {[%clk 0:00:16]}
33... Nc3 {[%clk 0:01:04.3]} 34. Qa1 {[%clk 0:00:16.1]} 34... Qh5 {[%clk
0:00:57.9]} 35. Ne1 {[%clk 0:00:09.9]} 35... Qe2 {[%clk 0:00:55.7]} 36. Kg1
{[%clk 0:00:05.7]} 36... Nd1 {[%clk 0:00:55.2]} 0-1

[Event "*** Titled Tuesday Blitz"]
[Site "Chess.com"]
[Date "2020.04.28"]
[Round "2"]
[White "bancsoo"]
[Black "marianokar"]
[Result "1-0"]
[WhiteElo "2654"]
[BlackElo "2354"]
[TimeControl "180+1"]
[EndTime "10:17:21 PDT"]
[Termination "bancsoo won on time"]

1. d4 {[%clk 0:03:00.9]} 1... Nf6 {[%clk 0:02:58.6]} 2. Nf3 {[%clk 0:03:01.1]}
2... e6 {[%clk 0:02:56.7]} 3. g3 {[%clk 0:03:00.9]} 3... d5 {[%clk 0:02:55.9]}
4. Bg2 {[%clk 0:03:01.1]} 4... b5 {[%clk 0:02:56.4]} 5. O-O {[%clk 0:03:00.8]}
5... Bb7 {[%clk 0:02:54.8]} 6. a4 {[%clk 0:03:00.6]} 6... b4 {[%clk 0:02:53.6]}
7. c4 {[%clk 0:03:00.9]} 7... dxc4 {[%clk 0:02:46.8]} 8. Qc2 {[%clk 0:02:40]}
8... Nbd7 {[%clk 0:02:41]} 9. Nbd2 {[%clk 0:02:37.5]} 9... c5 {[%clk 0:02:40.5]}
10. dxc5 {[%clk 0:02:36.7]} 10... Bxc5 {[%clk 0:02:38.8]} 11. Nxc4 {[%clk
0:02:33]} 11... Be4 {[%clk 0:02:04.8]} 12. Qd1 {[%clk 0:02:30.6]} 12... O-O
{[%clk 0:02:02.1]} 13. Bf4 {[%clk 0:02:30.2]} 13... Bd5 {[%clk 0:01:10.2]} 14.
Rc1 {[%clk 0:02:27.6]} 14... Rc8 {[%clk 0:01:06.2]} 15. Nd6 {[%clk 0:02:19.2]}
15... Rc6 {[%clk 0:00:51.8]} 16. Nb5 {[%clk 0:02:00.4]} 16... Qb6 {[%clk
0:00:44]} 17. e3 {[%clk 0:01:55.2]} 17... Rfc8 {[%clk 0:00:34.9]} 18. Qd2 {[%clk
0:01:25.9]} 18... a6 {[%clk 0:00:29.1]} 19. Nbd4 {[%clk 0:01:15.5]} 19... Bxd4
{[%clk 0:00:29.2]} 20. Rxc6 {[%clk 0:01:15.2]} 20... Rxc6 {[%clk 0:00:28.5]} 21.
Qxd4 {[%clk 0:01:00.2]} 21... Bxf3 {[%clk 0:00:22.9]} 22. Qxb6 {[%clk
0:00:52.3]} 22... Nxb6 {[%clk 0:00:21.7]} 23. Bxf3 {[%clk 0:00:52.8]} 23... Rc2
{[%clk 0:00:21]} 24. b3 {[%clk 0:00:45.5]} 24... Rc3 {[%clk 0:00:16.1]} 25. Rb1
{[%clk 0:00:41.4]} 25... a5 {[%clk 0:00:11.1]} 26. Be5 {[%clk 0:00:39.5]} 26...
Rc2 {[%clk 0:00:09.2]} 27. Rd1 {[%clk 0:00:38.7]} 27... Nbd5 {[%clk 0:00:03.4]}
28. e4 {[%clk 0:00:35.9]} 1-0

[Event "*** Titled Tuesday Blitz"]
[Site "Chess.com"]
[Date "2020.04.28"]
[Round "2"]
[White "DenishevM"]
[Black "Chessterra87"]
[Result "1-0"]
[WhiteElo "2569"]
[BlackElo "2299"]
[TimeControl "180+1"]
[EndTime "10:17:21 PDT"]
[Termination "DenishevM won by checkmate"]

1. d4 {[%clk 0:03:00.9]} 1... c5 {[%clk 0:02:59.6]} 2. d5 {[%clk 0:03:00.4]}
2... b5 {[%clk 0:02:59.4]} 3. e4 {[%clk 0:02:59.7]} 3... a6 {[%clk 0:02:59.4]}
4. a4 {[%clk 0:02:59.7]} 4... bxa4 {[%clk 0:02:59.2]} 5. Nf3 {[%clk 0:02:51.1]}
5... d6 {[%clk 0:02:59.5]} 6. Rxa4 {[%clk 0:02:50.5]} 6... Nf6 {[%clk
0:02:57.3]} 7. Nc3 {[%clk 0:02:50.6]} 7... g6 {[%clk 0:02:57.4]} 8. Bc4 {[%clk
0:02:50.2]} 8... Bg7 {[%clk 0:02:57.7]} 9. h3 {[%clk 0:02:50.8]} 9... O-O {[%clk
0:02:57.6]} 10. O-O {[%clk 0:02:51.3]} 10... Nbd7 {[%clk 0:02:58]} 11. Bf4
{[%clk 0:02:51.6]} 11... Nb6 {[%clk 0:02:54.6]} 12. Qe2 {[%clk 0:02:46.3]} 12...
Nxa4 {[%clk 0:02:52.6]} 13. Nxa4 {[%clk 0:02:47.2]} 13... Bd7 {[%clk 0:02:35]}
14. Nc3 {[%clk 0:02:45.2]} 14... Qb6 {[%clk 0:02:34.6]} 15. b3 {[%clk
0:02:42.6]} 15... Rfb8 {[%clk 0:02:21.9]} 16. e5 {[%clk 0:02:33.4]} 16... Ne8
{[%clk 0:02:11.8]} 17. Ne4 {[%clk 0:02:22.3]} 17... Bb5 {[%clk 0:02:04.3]} 18.
e6 {[%clk 0:02:11.5]} 18... f5 {[%clk 0:01:55.4]} 19. Neg5 {[%clk 0:02:11.5]}
19... Bxc4 {[%clk 0:01:55.1]} 20. bxc4 {[%clk 0:02:08.9]} 20... a5 {[%clk
0:01:44.4]} 21. Bc1 {[%clk 0:01:56.9]} 21... a4 {[%clk 0:01:41.4]} 22. Ba3
{[%clk 0:01:56.8]} 22... Bb2 {[%clk 0:01:34.5]} 23. Nh4 {[%clk 0:01:23.9]} 23...
Bxa3 {[%clk 0:01:16.7]} 24. Nxf5 {[%clk 0:01:24.1]} 24... gxf5 {[%clk
0:01:12.2]} 25. Qh5 {[%clk 0:01:23.8]} 25... Nf6 {[%clk 0:00:57.1]} 26. Qf7+
{[%clk 0:01:19.7]} 26... Kh8 {[%clk 0:00:56.7]} 27. Qxe7 {[%clk 0:01:16.2]}
27... Bb2 {[%clk 0:00:37.5]} 28. Nf7+ {[%clk 0:00:57.6]} 28... Kg7 {[%clk
0:00:25.1]} 29. Ne5+ {[%clk 0:00:49.7]} 29... Kg8 {[%clk 0:00:15.8]} 30. Qf7+
{[%clk 0:00:49.2]} 30... Kh8 {[%clk 0:00:16]} 31. Qxf6+ {[%clk 0:00:49.8]} 31...
Kg8 {[%clk 0:00:16.5]} 32. Qg5+ {[%clk 0:00:48]} 32... Kf8 {[%clk 0:00:16.2]}
33. Nd7+ {[%clk 0:00:42.1]} 33... Ke8 {[%clk 0:00:15.5]} 34. Qg8+ {[%clk
0:00:34.9]} 34... Ke7 {[%clk 0:00:15]} 35. Qf7+ {[%clk 0:00:35.8]} 35... Kd8
{[%clk 0:00:14.8]} 36. Nxb6 {[%clk 0:00:36.5]} 36... Rxb6 {[%clk 0:00:15]} 37.
Qd7# {[%clk 0:00:36.1]} 1-0

[Event "*** Titled Tuesday Blitz"]
[Site "Chess.com"]
[Date "2020.04.28"]
[Round "2"]
[White "bait_or_mate"]
[Black "Galiev_Azat"]
[Result "1-0"]
[WhiteElo "2544"]
[BlackElo "2287"]
[TimeControl "180+1"]
[EndTime "10:17:22 PDT"]
[Termination "bait_or_mate won on time"]

1. d4 {[%clk 0:03:00.9]} 1... Nf6 {[%clk 0:02:56]} 2. c4 {[%clk 0:03:00.8]} 2...
e6 {[%clk 0:02:55.8]} 3. Nf3 {[%clk 0:03:00.4]} 3... b6 {[%clk 0:02:55]} 4. g3
{[%clk 0:02:59.3]} 4... Ba6 {[%clk 0:02:54.9]} 5. Qc2 {[%clk 0:02:58]} 5... c5
{[%clk 0:02:41.2]} 6. Bg2 {[%clk 0:02:53.9]} 6... Nc6 {[%clk 0:02:37.1]} 7. dxc5
{[%clk 0:02:53]} 7... Bxc5 {[%clk 0:02:36.4]} 8. O-O {[%clk 0:02:53.2]} 8... O-O
{[%clk 0:02:29.9]} 9. a3 {[%clk 0:02:52.1]} 9... Bb7 {[%clk 0:02:21.5]} 10. e3
{[%clk 0:02:47.6]} 10... Rc8 {[%clk 0:02:17.3]} 11. Rd1 {[%clk 0:02:46]} 11...
a5 {[%clk 0:02:14.8]} 12. Nc3 {[%clk 0:02:43.4]} 12... Qe7 {[%clk 0:02:10.6]}
13. b3 {[%clk 0:02:39.1]} 13... Rfd8 {[%clk 0:02:09.1]} 14. Bb2 {[%clk
0:02:38.7]} 14... d5 {[%clk 0:02:05.2]} 15. cxd5 {[%clk 0:02:37.4]} 15... exd5
{[%clk 0:02:03.5]} 16. Qf5 {[%clk 0:02:30.4]} 16... d4 {[%clk 0:01:52.6]} 17.
exd4 {[%clk 0:02:22.2]} 17... Nxd4 {[%clk 0:01:51.9]} 18. Nxd4 {[%clk 0:02:22]}
18... Bxg2 {[%clk 0:01:43.8]} 19. Kxg2 {[%clk 0:02:22.9]} 19... Bxd4 {[%clk
0:01:43.6]} 20. Rac1 {[%clk 0:02:17.2]} 20... Bxc3 {[%clk 0:01:37.5]} 21. Rxd8+
{[%clk 0:02:10.6]} 21... Qxd8 {[%clk 0:01:28.2]} 22. Rxc3 {[%clk 0:02:07.5]}
22... Rxc3 {[%clk 0:01:25]} 23. Bxc3 {[%clk 0:02:08.4]} 23... Qd5+ {[%clk
0:01:25.1]} 24. Qxd5 {[%clk 0:01:57.5]} 24... Nxd5 {[%clk 0:01:23.3]} 25. Bd4
{[%clk 0:01:58]} 25... f5 {[%clk 0:01:18.8]} 26. Kf3 {[%clk 0:01:56.7]} 26...
Kf7 {[%clk 0:01:17.6]} 27. Ke2 {[%clk 0:01:52.4]} 27... g5 {[%clk 0:01:13.1]}
28. Kd3 {[%clk 0:01:50.3]} 28... b5 {[%clk 0:01:06.1]} 29. a4 {[%clk 0:01:48.8]}
29... bxa4 {[%clk 0:01:00]} 30. bxa4 {[%clk 0:01:49.7]} 30... Ke6 {[%clk
0:00:49.6]} 31. Kc4 {[%clk 0:01:49.7]} 31... Kd6 {[%clk 0:00:42.1]} 32. Kb5
{[%clk 0:01:49]} 32... Nc7+ {[%clk 0:00:23.5]} 33. Kxa5 {[%clk 0:01:45.2]} 33...
Kc6 {[%clk 0:00:16.5]} 34. Kb4 {[%clk 0:01:43.5]} 34... g4 {[%clk 0:00:14.2]}
35. Kc4 {[%clk 0:01:41.7]} 35... Nd5 {[%clk 0:00:07.5]} 36. Be3 {[%clk
0:01:32.2]} 36... h5 {[%clk 0:00:06.6]} 37. Kd4 {[%clk 0:01:28.2]} 37... Nf6
{[%clk 0:00:04.5]} 38. Ke5 {[%clk 0:01:27.3]} 38... Ne4 {[%clk 0:00:03.6]} 39.
Kxf5 {[%clk 0:01:26.5]} 1-0

[Event "*** Titled Tuesday Blitz"]
[Site "Chess.com"]
[Date "2020.04.28"]
[Round "2"]
[White "RitvarsReimanis"]
[Black "barbara25"]
[Result "1-0"]
[WhiteElo "2600"]
[BlackElo "2271"]
[TimeControl "180+1"]
[EndTime "10:17:23 PDT"]
[Termination "RitvarsReimanis won by resignation"]

1. d4 {[%clk 0:03:00.9]} 1... d5 {[%clk 0:02:59.2]} 2. c4 {[%clk 0:03:01.3]}
2... c6 {[%clk 0:02:58.7]} 3. Nf3 {[%clk 0:03:01.7]} 3... Nf6 {[%clk 0:02:58.5]}
4. e3 {[%clk 0:03:01.2]} 4... Bf5 {[%clk 0:02:57.8]} 5. Nc3 {[%clk 0:03:01.6]}
5... e6 {[%clk 0:02:56.1]} 6. Nh4 {[%clk 0:03:02.2]} 6... Be4 {[%clk 0:02:54.9]}
7. f3 {[%clk 0:03:02.7]} 7... Bg6 {[%clk 0:02:54.9]} 8. Bd2 {[%clk 0:03:03.3]}
8... Be7 {[%clk 0:02:54.6]} 9. Qb3 {[%clk 0:03:03.4]} 9... Qc7 {[%clk
0:02:53.8]} 10. O-O-O {[%clk 0:03:03]} 10... Nbd7 {[%clk 0:02:53.5]} 11. Nxg6
{[%clk 0:03:00.8]} 11... hxg6 {[%clk 0:02:53]} 12. Kb1 {[%clk 0:03:00.2]} 12...
a5 {[%clk 0:02:52.2]} 13. cxd5 {[%clk 0:02:57]} 13... exd5 {[%clk 0:02:46.9]}
14. Rc1 {[%clk 0:02:57.4]} 14... Qd8 {[%clk 0:02:41.6]} 15. Qxb7 {[%clk
0:02:52.2]} 15... c5 {[%clk 0:02:36.8]} 16. Nxd5 {[%clk 0:02:44.7]} 16... Nxd5
{[%clk 0:02:35.6]} 17. Qxd5 {[%clk 0:02:45.6]} 17... cxd4 {[%clk 0:02:35.2]} 18.
Bb5 {[%clk 0:02:38.9]} 18... Ra7 {[%clk 0:02:06.5]} 19. Bxa5 {[%clk 0:02:30.4]}
19... Rxa5 {[%clk 0:01:01.7]} 20. Bxd7+ {[%clk 0:02:26.6]} 20... Qxd7 {[%clk
0:00:51.2]} 21. Qxa5 {[%clk 0:02:20.5]} 21... O-O {[%clk 0:00:51.1]} 22. Rhd1
{[%clk 0:02:05.8]} 22... d3 {[%clk 0:00:43.7]} 23. Rc3 {[%clk 0:01:57.9]} 23...
Bf6 {[%clk 0:00:43.2]} 24. Rcxd3 {[%clk 0:01:50.9]} 24... Qc6 {[%clk 0:00:39.4]}
25. Qd2 {[%clk 0:01:42.7]} 25... Rb8 {[%clk 0:00:35.5]} 26. Rb3 {[%clk
0:01:43.3]} 26... Rf8 {[%clk 0:00:30.5]} 27. Qc2 {[%clk 0:01:41.8]} 27... Qe6
{[%clk 0:00:29]} 28. e4 {[%clk 0:01:41.4]} 28... Qe5 {[%clk 0:00:28.7]} 29. g3
{[%clk 0:01:38.6]} 29... Ra8 {[%clk 0:00:28.5]} 30. f4 {[%clk 0:01:34.8]} 30...
Qh5 {[%clk 0:00:28.2]} 31. e5 {[%clk 0:01:32.1]} 31... Be7 {[%clk 0:00:27.3]}
32. a3 {[%clk 0:01:26.4]} 32... Qg4 {[%clk 0:00:19.1]} 33. Rc1 {[%clk
0:01:23.6]} 33... Kh7 {[%clk 0:00:17.9]} 34. Rb7 {[%clk 0:01:18.1]} 34... Bf8
{[%clk 0:00:17.1]} 35. Qb3 {[%clk 0:01:02.2]} 35... Qf5+ {[%clk 0:00:14]} 36.
Ka2 {[%clk 0:01:02.7]} 36... Qe4 {[%clk 0:00:10.4]} 37. Rxf7 {[%clk 0:00:52.5]}
37... g5 {[%clk 0:00:07]} 38. Qc2 {[%clk 0:00:49.8]} 1-0

[Event "*** Titled Tuesday Blitz"]
[Site "Chess.com"]
[Date "2020.04.28"]
[Round "2"]
[White "Dobuchak"]
[Black "Antipov_Mikhail_Al"]
[Result "1-0"]
[WhiteElo "2362"]
[BlackElo "2870"]
[TimeControl "180+1"]
[EndTime "10:17:23 PDT"]
[Termination "Dobuchak won on time"]

1. e4 {[%clk 0:03:00.9]} 1... e5 {[%clk 0:02:59.7]} 2. Nf3 {[%clk 0:03:01]} 2...
Nc6 {[%clk 0:02:59.7]} 3. Nc3 {[%clk 0:03:00.6]} 3... Nf6 {[%clk 0:02:59.2]} 4.
Be2 {[%clk 0:03:01.2]} 4... d5 {[%clk 0:02:17.4]} 5. exd5 {[%clk 0:03:02.1]}
5... Nxd5 {[%clk 0:02:18.3]} 6. O-O {[%clk 0:03:01.2]} 6... Nxc3 {[%clk
0:02:17.6]} 7. bxc3 {[%clk 0:03:02.1]} 7... e4 {[%clk 0:02:15.8]} 8. Ne1 {[%clk
0:03:02.6]} 8... Bc5 {[%clk 0:02:14.3]} 9. d4 {[%clk 0:02:58.4]} 9... exd3
{[%clk 0:02:13.8]} 10. cxd3 {[%clk 0:02:59.3]} 10... O-O {[%clk 0:02:13.6]} 11.
d4 {[%clk 0:02:59.5]} 11... Bd6 {[%clk 0:02:12.5]} 12. Nd3 {[%clk 0:02:58.1]}
12... Bf5 {[%clk 0:02:11.8]} 13. a4 {[%clk 0:02:49.8]} 13... Re8 {[%clk
0:02:09.3]} 14. Ba3 {[%clk 0:02:48.9]} 14... Bxa3 {[%clk 0:02:06.5]} 15. Rxa3
{[%clk 0:02:49.8]} 15... Qd6 {[%clk 0:02:00]} 16. Ra2 {[%clk 0:02:39.7]} 16...
Re7 {[%clk 0:01:59.9]} 17. Bf3 {[%clk 0:02:33.7]} 17... Rae8 {[%clk 0:01:58.1]}
18. Nc5 {[%clk 0:02:26.9]} 18... b6 {[%clk 0:01:55.5]} 19. Nd3 {[%clk
0:02:21.4]} 19... Bxd3 {[%clk 0:01:42.7]} 20. Qxd3 {[%clk 0:02:20.8]} 20... Ne5
{[%clk 0:00:34.2]} 21. Qd1 {[%clk 0:01:56.3]} 21... Nxf3+ {[%clk 0:00:34.5]} 22.
Qxf3 {[%clk 0:01:57.2]} 22... c5 {[%clk 0:00:35.4]} 23. d5 {[%clk 0:01:47]}
23... Re4 {[%clk 0:00:34.9]} 24. g3 {[%clk 0:01:43.5]} 24... Qxd5 {[%clk
0:00:34.6]} 25. Raa1 {[%clk 0:01:40]} 25... h5 {[%clk 0:00:32.3]} 26. Rad1
{[%clk 0:01:38.6]} 26... Qg5 {[%clk 0:00:29.9]} 27. Rd7 {[%clk 0:01:28.2]} 27...
R8e7 {[%clk 0:00:14.9]} 28. Rd8+ {[%clk 0:01:20.2]} 28... Kh7 {[%clk 0:00:14.8]}
29. Qd3 {[%clk 0:01:09.5]} 29... Qg6 {[%clk 0:00:13.5]} 30. Rd5 {[%clk
0:01:07.1]} 30... R4e5 {[%clk 0:00:11.6]} 31. Qf3 {[%clk 0:00:57.5]} 1-0

[Event "*** Titled Tuesday Blitz"]
[Site "Chess.com"]
[Date "2020.04.28"]
[Round "2"]
[White "zabivol_mc"]
[Black "novocane"]
[Result "1-0"]
[WhiteElo "2466"]
[BlackElo "2237"]
[TimeControl "180+1"]
[EndTime "10:17:23 PDT"]
[Termination "zabivol_mc won on time"]

1. Nf3 {[%clk 0:03:00.3]} 1... c5 {[%clk 0:02:59.2]} 2. g3 {[%clk 0:02:59.8]}
2... b6 {[%clk 0:02:58.7]} 3. Bg2 {[%clk 0:02:59.3]} 3... Bb7 {[%clk 0:02:59.3]}
4. O-O {[%clk 0:02:59.7]} 4... e6 {[%clk 0:02:59.9]} 5. c4 {[%clk 0:02:58.8]}
5... Nf6 {[%clk 0:03:00]} 6. Nc3 {[%clk 0:02:57.5]} 6... a6 {[%clk 0:02:57.9]}
7. b3 {[%clk 0:02:54]} 7... Be7 {[%clk 0:02:56.3]} 8. Bb2 {[%clk 0:02:54.2]}
8... d6 {[%clk 0:02:53.3]} 9. d4 {[%clk 0:02:53.2]} 9... cxd4 {[%clk 0:02:52.6]}
10. Qxd4 {[%clk 0:02:53.3]} 10... Nbd7 {[%clk 0:02:47.1]} 11. Rad1 {[%clk
0:02:51.7]} 11... Qc7 {[%clk 0:02:43.7]} 12. Qf4 {[%clk 0:02:40]} 12... O-O
{[%clk 0:02:31.8]} 13. e4 {[%clk 0:02:34.9]} 13... Rfe8 {[%clk 0:02:18.1]} 14.
Rfe1 {[%clk 0:02:33.3]} 14... Rac8 {[%clk 0:02:13.2]} 15. e5 {[%clk 0:02:13.4]}
15... dxe5 {[%clk 0:01:53.2]} 16. Nxe5 {[%clk 0:02:10.2]} 16... Nxe5 {[%clk
0:01:34.6]} 17. Bxb7 {[%clk 0:02:03.8]} 17... Nxc4 {[%clk 0:01:04.5]} 18. Bxc8
{[%clk 0:01:39]} 18... Qxf4 {[%clk 0:00:57.2]} 19. gxf4 {[%clk 0:01:39.1]} 19...
Nxb2 {[%clk 0:00:55.4]} 20. Bxa6 {[%clk 0:01:27.8]} 20... Nxd1 {[%clk
0:00:45.3]} 21. Rxd1 {[%clk 0:01:28.4]} 21... Bb4 {[%clk 0:00:42]} 22. Na4
{[%clk 0:01:08.6]} 22... Nd5 {[%clk 0:00:39.3]} 23. f5 {[%clk 0:01:08.6]} 23...
g5 {[%clk 0:00:25.3]} 24. fxe6 {[%clk 0:00:59.7]} 24... fxe6 {[%clk 0:00:24.8]}
25. Bc4 {[%clk 0:00:58]} 25... Nf4 {[%clk 0:00:23.1]} 26. Nxb6 {[%clk
0:00:53.6]} 26... Bc5 {[%clk 0:00:22.9]} 27. Nd7 {[%clk 0:00:51.3]} 27... Be7
{[%clk 0:00:07.4]} 28. Ne5 {[%clk 0:00:45.2]} 28... Bf6 {[%clk 0:00:04.7]} 29.
Ng4 {[%clk 0:00:45.2]} 29... Bg7 {[%clk 0:00:03.7]} 30. a4 {[%clk 0:00:44.6]}
30... h5 {[%clk 0:00:03.5]} 31. Ne3 {[%clk 0:00:44.1]} 1-0

[Event "*** Titled Tuesday Blitz"]
[Site "Chess.com"]
[Date "2020.04.28"]
[Round "2"]
[White "arctic_t00"]
[Black "hamelekh"]
[Result "0-1"]
[WhiteElo "2466"]
[BlackElo "2696"]
[TimeControl "180+1"]
[EndTime "10:17:27 PDT"]
[Termination "hamelekh won by resignation"]

1. d4 {[%clk 0:03:00.9]} 1... Nf6 {[%clk 0:02:59.2]} 2. Nf3 {[%clk 0:03:00.6]}
2... e6 {[%clk 0:02:58.8]} 3. e3 {[%clk 0:03:00.1]} 3... b6 {[%clk 0:02:58.2]}
4. Bd3 {[%clk 0:03:00.3]} 4... Ba6 {[%clk 0:02:55.9]} 5. Bxa6 {[%clk 0:02:49.7]}
5... Nxa6 {[%clk 0:02:55.6]} 6. O-O {[%clk 0:02:50.2]} 6... c6 {[%clk
0:02:53.4]} 7. c4 {[%clk 0:02:48.3]} 7... Nc7 {[%clk 0:02:52.4]} 8. Nc3 {[%clk
0:02:45.1]} 8... Bb4 {[%clk 0:02:50.2]} 9. Qb3 {[%clk 0:02:42.7]} 9... Bxc3
{[%clk 0:02:48.8]} 10. Qxc3 {[%clk 0:02:42.8]} 10... O-O {[%clk 0:02:49.5]} 11.
b3 {[%clk 0:02:34.3]} 11... Rc8 {[%clk 0:02:45.8]} 12. Ba3 {[%clk 0:02:33.3]}
12... Re8 {[%clk 0:02:46.1]} 13. Qd3 {[%clk 0:02:24.8]} 13... d6 {[%clk
0:02:39.9]} 14. e4 {[%clk 0:02:19.2]} 14... d5 {[%clk 0:02:33.6]} 15. e5 {[%clk
0:02:12.6]} 15... Nd7 {[%clk 0:02:26]} 16. Rad1 {[%clk 0:02:07.8]} 16... c5
{[%clk 0:02:24.3]} 17. Rfe1 {[%clk 0:02:00.4]} 17... dxc4 {[%clk 0:02:17.3]} 18.
bxc4 {[%clk 0:01:59.5]} 18... cxd4 {[%clk 0:02:16.7]} 19. Qxd4 {[%clk
0:01:52.2]} 19... Nb8 {[%clk 0:02:16.6]} 20. Qg4 {[%clk 0:01:41.6]} 20... Nd7
{[%clk 0:02:05.1]} 21. Rd4 {[%clk 0:01:30.2]} 21... Na6 {[%clk 0:02:05]} 22.
Red1 {[%clk 0:01:26.4]} 22... Rc7 {[%clk 0:02:05.4]} 23. h4 {[%clk 0:01:15.3]}
23... Qc8 {[%clk 0:02:00.1]} 24. h5 {[%clk 0:01:14.1]} 24... h6 {[%clk
0:01:58.9]} 25. Bd6 {[%clk 0:01:09]} 25... Rb7 {[%clk 0:01:56.3]} 26. Qg3 {[%clk
0:00:59.7]} 26... f5 {[%clk 0:01:44.5]} 27. exf6 {[%clk 0:00:56.5]} 27... Nxf6
{[%clk 0:01:44.6]} 28. Qg6 {[%clk 0:00:51]} 28... Nc5 {[%clk 0:01:37.1]} 29. Be5
{[%clk 0:00:44]} 29... Rf7 {[%clk 0:01:29.7]} 30. Rf4 {[%clk 0:00:28.1]} 30...
Ref8 {[%clk 0:01:16.9]} 31. Bd6 {[%clk 0:00:21.5]} 31... Rd7 {[%clk 0:01:11.4]}
32. Kh2 {[%clk 0:00:15.3]} 32... Qe8 {[%clk 0:01:05.8]} 33. Qc2 {[%clk
0:00:03.8]} 33... Qxh5+ {[%clk 0:01:04.9]} 34. Rh4 {[%clk 0:00:03]} 34... Qf5
{[%clk 0:00:57]} 35. Bxf8 {[%clk 0:00:02.7]} 35... Qxc2 {[%clk 0:00:55.9]} 36.
Rxd7 {[%clk 0:00:03.6]} 36... Ncxd7 {[%clk 0:00:55.5]} 37. Bd6 {[%clk
0:00:03.5]} 37... g5 {[%clk 0:00:53.7]} 38. Rxh6 {[%clk 0:00:03.4]} 38... Ng4+
{[%clk 0:00:53.6]} 0-1